[Event "Championnat d'Europe Rapide"]
[Date "2024.12.07"]
[White "Kozul, Zdenko"]
[Black "Zlatkov, Anton"]
[WhiteElo "2519"]
[BlackElo "2324"]
[Round "3.27"]
[Result "1-0"]
[TimeControl "900+10"]

1. d4 {[%clk 00:15:18]} Nf6 {[%emt 00:00:02] [%clk 00:15:19]} 2. Nf3 {[%emt
00:00:02] [%clk 00:15:26]} e6 {[%emt 00:00:17] [%clk 00:15:12]} 3. c4 {[%emt
00:00:02] [%clk 00:15:34]} d5 {[%emt 00:00:02] [%clk 00:15:20]} 4. g3 {[%emt
00:00:02] [%clk 00:15:42]} Bb4+ {[%emt 00:00:02] [%clk 00:15:29]} 5. Bd2 {[%emt
00:00:03] [%clk 00:15:49]} Be7 {[%emt 00:00:01] [%clk 00:15:37]} 6. Bg2 {[%emt
00:00:02] [%clk 00:15:58]} O-O {[%emt 00:00:03] [%clk 00:15:44]} 7. O-O {[%emt
00:00:02] [%clk 00:16:06]} c6 {[%emt 00:00:02] [%clk 00:15:52]} 8. Qb3 {[%emt
00:00:30] [%clk 00:15:46]} a5 {[%emt 00:00:03] [%clk 00:16:00]} 9. Rc1 {[%emt
00:00:39] [%clk 00:15:16]} Nbd7 {[%emt 00:00:22] [%clk 00:15:48]} 10. a4 {[%emt
00:00:41] [%clk 00:14:46]} Nb6 {[%emt 00:01:14] [%clk 00:14:44]} 11. c5 {[%emt
00:01:31] [%clk 00:13:25]} Nc4 {[%emt 00:00:28] [%clk 00:14:26]} 12. Bf4 {[%emt
00:00:21] [%clk 00:13:13]} Ne4 {[%emt 00:06:43] [%clk 00:07:54]} 13. h4 {[%emt
00:00:34] [%clk 00:12:48]} f6 {[%emt 00:02:42] [%clk 00:05:22]} 14. Rxc4 {[%emt
00:01:46] [%clk 00:11:11]} dxc4 {[%emt 00:00:04] [%clk 00:05:28]} 15. Qxc4
{[%emt 00:00:02] [%clk 00:11:19]} Kh8 {[%emt 00:01:36] [%clk 00:04:02]} 16. Qc2
{[%emt 00:00:46] [%clk 00:10:43]} f5 {[%emt 00:00:50] [%clk 00:03:23]} 17. Na3
{[%emt 00:00:03] [%clk 00:10:50]} b6 {[%emt 00:00:41] [%clk 00:02:53]} 18. Ne5
{[%emt 00:00:11] [%clk 00:10:48]} bxc5 {[%emt 00:00:17] [%clk 00:02:47]} 19.
dxc5 {[%emt 00:03:20] [%clk 00:07:37]} Ba6 {[%emt 00:00:11] [%clk 00:02:46]} 20.
Nxc6 {[%emt 00:02:27] [%clk 00:05:20]} Qe8 {[%emt 00:00:02] [%clk 00:02:53]} 21.
Nxe7 {[%emt 00:01:06] [%clk 00:04:24]} Qxe7 {[%emt 00:00:03] [%clk 00:03:01]}
22. Nb5 {[%emt 00:00:07] [%clk 00:04:27]} e5 {[%emt 00:01:04] [%clk 00:02:07]}
23. Be3 {[%emt 00:00:30] [%clk 00:04:07]} Bb7 {[%emt 00:00:23] [%clk 00:01:55]}
24. Nd6 {[%emt 00:00:23] [%clk 00:03:53]} Nxd6 {[%emt 00:00:30] [%clk 00:01:35]}
25. cxd6 {[%emt 00:00:01] [%clk 00:04:01]} Qd7 {[%emt 00:00:01] [%clk 00:01:44]}
26. Qc7 {[%emt 00:00:16] [%clk 00:03:55]} Qxc7 {[%emt 00:00:08] [%clk 00:01:47]}
27. dxc7 {[%emt 00:00:01] [%clk 00:04:03]} Bxg2 {[%emt 00:00:12] [%clk
00:01:45]} 28. Kxg2 {[%emt 00:00:01] [%clk 00:04:11]} Rfc8 {[%emt 00:00:34]
[%clk 00:01:22]} 29. Bb6 {[%emt 00:00:11] [%clk 00:04:10]} Kg8 {[%clk 00:01:20]}
30. Rc1 {[%emt 00:00:16]} Kf7 31. Rd1 {[%clk 00:04:16]} Kf6 {[%emt 00:00:52]
[%clk 00:01:08]} 32. Rd7 {[%clk 00:03:38]} h5 {[%emt 00:00:54] [%clk 00:01:02]}
33. Kf3 {[%clk 00:03:04]} g6 {[%emt 00:00:53] [%clk 00:01:04]} 34. Ke3 {[%clk
00:03:00]} Ke6 {[%emt 00:00:29] [%clk 00:00:59]} 35. Kd3 {[%clk 00:03:04]} Kf6
{[%emt 00:00:35] [%clk 00:00:39]} 36. Rd8 {[%clk 00:03:07]} f4 {[%emt 00:00:10]
[%clk 00:00:47]} 37. Kc4 {[%clk 00:02:34]} g5 {[%emt 00:00:53] [%clk 00:00:46]}
38. Kd5 {[%clk 00:01:37]} gxh4 {[%emt 00:01:15] [%clk 00:00:49]} 39. gxh4 {[%clk
00:01:46]} Kf5 {[%emt 00:00:05] [%clk 00:00:55]} 40. f3 {[%clk 00:01:54]} 1-0

[Site "Europe Echecs"]

[Event "Championnat d'Europe Rapide"]
[Date "2024.12.07"]
[White "Livaic, Leon"]
[Black "Jotic, Vladimir"]
[WhiteElo "2560"]
[BlackElo "2249"]
[Round "3.28"]
[Result "1-0"]
[TimeControl "900+10"]

1. d4 {[%emt 00:00:02] [%clk 00:15:17]} Nf6 {[%emt 00:00:03] [%clk 00:15:18]} 2.
c4 {[%emt 00:00:01] [%clk 00:15:26]} c5 {[%emt 00:00:05] [%clk 00:15:22]} 3. d5
{[%emt 00:00:02] [%clk 00:15:33]} e6 {[%emt 00:00:16] [%clk 00:15:16]} 4. Nc3
{[%emt 00:00:02] [%clk 00:15:41]} d6 {[%emt 00:00:18] [%clk 00:15:08]} 5. e4
{[%emt 00:00:04] [%clk 00:15:47]} exd5 {[%emt 00:00:07] [%clk 00:15:12]} 6. cxd5
{[%emt 00:00:01] [%clk 00:15:56]} g6 {[%emt 00:00:09] [%clk 00:15:13]} 7. f4
{[%emt 00:00:12] [%clk 00:15:53]} Bg7 {[%emt 00:00:07] [%clk 00:15:15]} 8. Bb5+
{[%emt 00:00:04] [%clk 00:16:00]} Nfd7 {[%emt 00:00:09] [%clk 00:15:16]} 9. Nf3
{[%emt 00:00:03] [%clk 00:16:07]} O-O {[%emt 00:00:16] [%clk 00:15:09]} 10. O-O
{[%emt 00:00:03] [%clk 00:16:14]} a6 {[%emt 00:00:08] [%clk 00:15:12]} 11. Bd3
{[%emt 00:00:01] [%clk 00:16:22]} b5 {[%emt 00:00:17] [%clk 00:15:05]} 12. Qe1
{[%emt 00:00:02] [%clk 00:16:30]} Re8 {[%emt 00:00:29] [%clk 00:14:46]} 13. Qg3
{[%emt 00:00:03] [%clk 00:16:37]} c4 {[%emt 00:00:19] [%clk 00:14:37]} 14. Bc2
{[%emt 00:00:02] [%clk 00:16:46]} Bb7 {[%emt 00:01:50] [%clk 00:12:58]} 15. f5
{[%emt 00:00:12] [%clk 00:16:43]} Nf6 {[%emt 00:04:26] [%clk 00:08:41]} 16. fxg6
{[%emt 00:02:46] [%clk 00:14:07]} hxg6 {[%emt 00:00:03] [%clk 00:08:48]} 17. Ng5
{[%emt 00:00:17] [%clk 00:14:00]} Qe7 {[%emt 00:01:29] [%clk 00:07:29]} 18. Qh4
{[%emt 00:01:41] [%clk 00:12:29]} Nbd7 {[%emt 00:00:09] [%clk 00:07:30]} 19. a3
{[%emt 00:01:40] [%clk 00:11:00]} Nf8 {[%emt 00:01:30] [%clk 00:06:10]} 20. Be3
{[%emt 00:01:04] [%clk 00:10:06]} N8h7 {[%emt 00:01:05] [%clk 00:05:15]} 21. Rf3
{[%emt 00:00:20] [%clk 00:09:56]} Bc8 {[%emt 00:00:10] [%clk 00:05:15]} 22. Raf1
{[%emt 00:00:40] [%clk 00:09:25]} Qe5 {[%emt 00:03:28] [%clk 00:01:57]} 23. Nxf7
{[%emt 00:03:20] [%clk 00:06:15]} Qh5 {[%emt 00:01:20] [%clk 00:00:48]} 24. Qxh5
{[%emt 00:00:08] [%clk 00:06:17]} Nxh5 {[%emt 00:00:07] [%clk 00:00:50]} 25.
Nxd6 {[%emt 00:00:12] [%clk 00:06:16]} Rd8 {[%emt 00:00:02] [%clk 00:00:58]} 26.
Nf7 {[%emt 00:00:31] [%clk 00:05:54]} Re8 {[%emt 00:00:34] [%clk 00:00:34]} 27.
e5 {[%emt 00:00:15] [%clk 00:05:49]} 1-0

[Site "Europe Echecs"]

[Event "Championnat d'Europe Rapide"]
[Date "2024.12.07"]
[White "Fromm, Marius"]
[Black "Kazakouski, Valery"]
[WhiteElo "2459"]
[BlackElo "2567"]
[Round "3.29"]
[Result "0-1"]
[TimeControl "900+10"]

1. e4 {[%emt 00:00:03] [%clk 00:15:18]} c5 {[%clk 00:15:19]} 2. Nf3 {[%emt
00:00:01] [%clk 00:15:27]} a6 {[%emt 00:00:06] [%clk 00:15:22]} 3. c3 {[%emt
00:00:02] [%clk 00:15:34]} e6 {[%emt 00:00:40] [%clk 00:14:52]} 4. d4 {[%emt
00:00:09] [%clk 00:15:36]} d5 {[%emt 00:00:01] [%clk 00:15:01]} 5. e5 {[%emt
00:00:16] [%clk 00:15:30]} Bd7 {[%emt 00:00:01] [%clk 00:15:09]} 6. Bd3 {[%emt
00:00:03] [%clk 00:15:37]} Nc6 {[%emt 00:00:03] [%clk 00:15:16]} 7. O-O {[%emt
00:00:51] [%clk 00:14:57]} cxd4 {[%emt 00:00:10] [%clk 00:15:16]} 8. cxd4 {[%emt
00:00:40] [%clk 00:14:27]} Qb6 {[%emt 00:00:02] [%clk 00:15:23]} 9. Be2 {[%emt
00:02:59] [%clk 00:11:39]} Nge7 {[%emt 00:00:06] [%clk 00:15:26]} 10. Nc3 {[%emt
00:00:02] [%clk 00:11:48]} Nf5 {[%emt 00:00:01] [%clk 00:15:34]} 11. Na4 {[%emt
00:00:09] [%clk 00:11:49]} Qa7 {[%emt 00:00:01] [%clk 00:15:43]} 12. Be3 {[%emt
00:00:09] [%clk 00:11:50]} b5 {[%emt 00:00:50] [%clk 00:15:03]} 13. Nc3 {[%emt
00:00:10] [%clk 00:11:51]} Be7 {[%emt 00:00:04] [%clk 00:15:08]} 14. Rc1 {[%emt
00:00:36] [%clk 00:11:25]} O-O {[%emt 00:00:08] [%clk 00:15:10]} 15. Bd3 {[%emt
00:00:02] [%clk 00:11:34]} Nxe3 {[%emt 00:01:10] [%clk 00:14:09]} 16. fxe3
{[%emt 00:00:01] [%clk 00:11:43]} f6 {[%emt 00:02:30] [%clk 00:11:49]} 17. exf6
{[%emt 00:00:10] [%clk 00:11:43]} Rxf6 {[%emt 00:00:21] [%clk 00:11:37]} 18. Bb1
{[%emt 00:02:48] [%clk 00:09:05]} Raf8 {[%emt 00:01:24] [%clk 00:10:23]} 19. Qd3
{[%emt 00:02:02] [%clk 00:07:12]} g6 {[%emt 00:00:23] [%clk 00:10:10]} 20. Kh1
{[%emt 00:00:50] [%clk 00:06:33]} Be8 {[%emt 00:00:45] [%clk 00:09:35]} 21. a3
{[%emt 00:01:52] [%clk 00:04:52]} Bd6 {[%emt 00:00:26] [%clk 00:09:18]} 22. Ba2
{[%emt 00:00:29] [%clk 00:04:33]} Kg7 {[%emt 00:01:09] [%clk 00:08:19]} 23. Ng5
{[%emt 00:01:33] [%clk 00:03:11]} Qe7 {[%emt 00:00:34] [%clk 00:07:55]} 24. Rxf6
{[%emt 00:00:13] [%clk 00:03:08]} Qxf6 {[%emt 00:00:16] [%clk 00:07:49]} 25. Nf3
{[%emt 00:00:05] [%clk 00:03:13]} g5 {[%emt 00:00:32] [%clk 00:07:27]} 26. e4
{[%emt 00:00:39] [%clk 00:02:44]} g4 {[%emt 00:04:31] [%clk 00:03:06]} 27. e5
{[%emt 00:01:01] [%clk 00:01:53]} Qh6 {[%emt 00:00:01] [%clk 00:03:15]} 28. Rf1
{[%emt 00:01:39] [%clk 00:00:24]} Be7 {[%emt 00:00:42] [%clk 00:02:42]} 29. Nd2
{[%emt 00:00:19] [%clk 00:00:15]} Qxd2 {[%emt 00:00:09] [%clk 00:02:44]} 0-1

[Site "Europe Echecs"]

[Event "Championnat d'Europe Rapide"]
[Date "2024.12.07"]
[White "Alonso Rosell, Alvar"]
[Black "Perunovic, Miodrag"]
[WhiteElo "2532"]
[BlackElo "2357"]
[Round "3.30"]
[Result "1-0"]
[TimeControl "900+10"]

1. d4 {[%emt 00:00:03] [%clk 00:15:18]} Nf6 {[%clk 00:15:18]} 2. Nf3 {[%emt
00:00:02] [%clk 00:15:26]} e6 {[%emt 00:00:02] [%clk 00:15:26]} 3. e3 {[%emt
00:00:03] [%clk 00:15:34]} b6 {[%emt 00:00:02] [%clk 00:15:34]} 4. Bd3 {[%emt
00:00:05] [%clk 00:15:40]} Bb7 {[%emt 00:00:02] [%clk 00:15:42]} 5. b3 {[%emt
00:00:05] [%clk 00:15:45]} d5 {[%emt 00:00:04] [%clk 00:15:48]} 6. Bb2 {[%emt
00:00:09] [%clk 00:15:47]} Bd6 {[%emt 00:00:02] [%clk 00:15:55]} 7. Nbd2 {[%emt
00:00:09] [%clk 00:15:48]} O-O {[%emt 00:00:04] [%clk 00:16:01]} 8. c4 {[%emt
00:01:07] [%clk 00:14:51]} Nbd7 {[%emt 00:01:27] [%clk 00:14:43]} 9. Qc2 {[%emt
00:00:12] [%clk 00:14:50]} c5 {[%emt 00:00:33] [%clk 00:14:21]} 10. cxd5 {[%emt
00:00:24] [%clk 00:14:37]} exd5 {[%emt 00:00:03] [%clk 00:14:27]} 11. O-O {[%emt
00:00:39] [%clk 00:14:08]} Rc8 {[%emt 00:00:02] [%clk 00:14:35]} 12. dxc5 {[%emt
00:00:02] [%clk 00:14:16]} Nxc5 {[%emt 00:00:51] [%clk 00:13:54]} 13. Bf5 {[%emt
00:01:27] [%clk 00:12:59]} Rc7 {[%emt 00:00:19] [%clk 00:13:45]} 14. b4 {[%emt
00:00:52] [%clk 00:12:17]} Na6 {[%emt 00:00:33] [%clk 00:13:22]} 15. Qb3 {[%emt
00:00:23] [%clk 00:12:04]} Nxb4 {[%emt 00:00:04] [%clk 00:13:28]} 16. Rac1
{[%emt 00:00:08] [%clk 00:12:06]} Nc6 {[%emt 00:01:01] [%clk 00:12:37]} 17. Bb1
{[%emt 00:00:03] [%clk 00:12:13]} Ba6 {[%emt 00:00:30] [%clk 00:12:17]} 18. Rfd1
{[%emt 00:00:13] [%clk 00:12:10]} Na5 {[%emt 00:00:02] [%clk 00:12:26]} 19. Qa4
{[%emt 00:00:04] [%clk 00:12:15]} h6 {[%emt 00:02:21] [%clk 00:10:16]} 20. Rxc7
{[%emt 00:00:39] [%clk 00:11:47]} Bxc7 {[%emt 00:00:03] [%clk 00:10:22]} 21. Ne4
{[%emt 00:01:54] [%clk 00:10:03]} Nxe4 {[%emt 00:00:25] [%clk 00:10:07]} 22.
Bxe4 {[%emt 00:00:02] [%clk 00:10:11]} Bc4 {[%emt 00:03:27] [%clk 00:06:50]} 23.
Bb1 {[%emt 00:01:28] [%clk 00:08:54]} Qe8 {[%emt 00:01:21] [%clk 00:05:39]} 24.
Qc2 {[%emt 00:00:04] [%clk 00:09:00]} f5 {[%emt 00:00:02] [%clk 00:05:47]} 25.
Nd4 {[%emt 00:02:14] [%clk 00:06:56]} Qh5 {[%emt 00:00:01] [%clk 00:05:56]} 26.
f4 {[%emt 00:00:49] [%clk 00:06:17]} Nb7 {[%emt 00:03:21] [%clk 00:02:45]} 27.
h3 {[%emt 00:02:06] [%clk 00:04:21]} Nc5 {[%emt 00:00:21] [%clk 00:02:35]} 28.
Nxf5 {[%emt 00:00:29] [%clk 00:04:02]} Rxf5 {[%emt 00:00:08] [%clk 00:02:36]}
29. Qxf5 {[%emt 00:00:02] [%clk 00:04:10]} Qxd1+ {[%emt 00:00:04] [%clk
00:02:42]} 30. Kh2 {[%emt 00:00:03] [%clk 00:04:18]} Bd3 {[%emt 00:01:39] [%clk
00:01:12]} 31. Qxd5+ {[%emt 00:00:32] [%clk 00:03:56]} Kf8 {[%emt 00:00:26]
[%clk 00:00:56]} 32. Qa8+ {[%emt 00:02:38] [%clk 00:01:28]} Ke7 {[%emt 00:00:05]
[%clk 00:01:01]} 33. Qxa7 {[%emt 00:00:14] [%clk 00:01:25]} Bxb1 {[%emt
00:00:23] [%clk 00:00:48]} 34. Qxc7+ {[%emt 00:00:02] [%clk 00:01:32]} Nd7
{[%clk 00:00:57]} 35. Bxg7 {[%emt 00:00:26] [%clk 00:01:17]} Be4 {[%emt
00:00:02] [%clk 00:01:04]} 36. Qc4 {[%emt 00:00:24] [%clk 00:01:03]} Nc5 {[%emt
00:00:14] [%clk 00:01:01]} 37. Bxh6 {[%emt 00:00:09] [%clk 00:01:04]} Qd2 {[%emt
00:00:03] [%clk 00:01:08]} 38. Qg8 {[%emt 00:00:08] [%clk 00:01:05]} Ne6 {[%emt
00:00:28] [%clk 00:00:51]} 39. Bg5+ {[%emt 00:00:12] [%clk 00:01:04]} Nxg5
{[%emt 00:00:48] [%clk 00:00:12]} 40. Qxg5+ {[%emt 00:00:03] [%clk 00:01:11]}
Kd7 {[%emt 00:00:01] [%clk 00:00:21]} 41. a4 {[%emt 00:00:50] [%clk 00:00:31]}
Qxe3 {[%emt 00:00:04] [%clk 00:00:28]} 42. h4 {[%emt 00:00:09] [%clk 00:00:32]}
Qd2 {[%emt 00:00:01] [%clk 00:00:36]} 43. h5 {[%emt 00:00:13] [%clk 00:00:29]}
Bxg2 {[%emt 00:00:08] [%clk 00:00:38]} 44. Qxg2 {[%emt 00:00:22] [%clk
00:00:17]} Qxf4+ {[%emt 00:00:01] [%clk 00:00:47]} 45. Qg3 {[%clk 00:00:26]}
Qxa4 {[%emt 00:00:05] [%clk 00:00:52]} 46. h6 {[%emt 00:00:04] [%clk 00:00:33]}
Qc2+ {[%emt 00:00:03] [%clk 00:00:59]} 47. Qg2 {[%emt 00:00:03] [%clk 00:00:40]}
Qf5 {[%emt 00:00:53] [%clk 00:00:16]} 48. Qh3 {[%emt 00:00:02] [%clk 00:00:48]}
Kd6 {[%emt 00:00:15]} 1-0

[Site "Europe Echecs"]

[Event "Championnat d'Europe Rapide"]
[Date "2024.12.07"]
[White "Reprintsev, Alexander"]
[Black "Guliyev, Namig"]
[WhiteElo "2230"]
[BlackElo "2484"]
[Round "3.31"]
[Result "0-1"]
[TimeControl "900+10"]

1. e4 {[%emt 00:00:07] [%clk 00:15:13]} c5 {[%emt 00:00:07] [%clk 00:15:14]} 2.
b3 {[%emt 00:00:01] [%clk 00:15:21]} Nf6 {[%emt 00:00:13] [%clk 00:15:10]} 3. e5
{[%emt 00:00:02] [%clk 00:15:29]} Nd5 {[%emt 00:00:05] [%clk 00:15:15]} 4. Nc3
{[%emt 00:00:09] [%clk 00:15:30]} Nc7 {[%emt 00:00:58] [%clk 00:14:28]} 5. d4
{[%emt 00:00:02] [%clk 00:15:38]} Nc6 {[%emt 00:00:17] [%clk 00:14:21]} 6. d5
{[%emt 00:06:15] [%clk 00:09:33]} Nxe5 {[%emt 00:00:12] [%clk 00:14:19]} 7. f4
{[%clk 00:09:42]} Ng6 {[%emt 00:00:02] [%clk 00:14:27]} 8. h4 {[%clk 00:09:51]}
h5 {[%emt 00:00:11] [%clk 00:14:27]} 9. Bd3 {[%emt 00:00:04] [%clk 00:09:57]} e6
{[%emt 00:00:07] [%clk 00:14:30]} 10. d6 {[%emt 00:01:30] [%clk 00:08:37]} Na6
{[%emt 00:02:51] [%clk 00:11:49]} 11. Bxg6 {[%emt 00:00:26] [%clk 00:08:21]}
fxg6 {[%emt 00:00:02] [%clk 00:11:58]} 12. Nf3 {[%emt 00:00:52] [%clk 00:07:39]}
b5 {[%emt 00:00:02] [%clk 00:12:06]} 13. Ne5 {[%emt 00:00:40] [%clk 00:07:08]}
Rh6 {[%emt 00:00:56] [%clk 00:11:21]} 14. Qf3 {[%emt 00:01:09] [%clk 00:06:09]}
Rb8 {[%emt 00:00:06] [%clk 00:11:25]} 15. Ne4 {[%emt 00:01:21] [%clk 00:04:58]}
Bb7 {[%emt 00:00:12] [%clk 00:11:23]} 16. Bb2 {[%emt 00:00:04] [%clk 00:05:04]}
Bxe4 {[%emt 00:01:32] [%clk 00:10:02]} 17. Qxe4 {[%emt 00:00:01] [%clk
00:05:12]} Qa5+ {[%emt 00:00:02] [%clk 00:10:11]} 18. c3 {[%emt 00:00:23] [%clk
00:04:59]} Rd8 {[%emt 00:03:47] [%clk 00:06:34]} 19. O-O {[%emt 00:00:39] [%clk
00:04:30]} Bxd6 {[%emt 00:00:47] [%clk 00:05:57]} 20. Nxg6 {[%emt 00:00:10]
[%clk 00:04:29]} Qb6 {[%emt 00:00:40] [%clk 00:05:27]} 21. f5 {[%emt 00:00:16]
[%clk 00:04:23]} c4+ {[%emt 00:00:12] [%clk 00:05:25]} 22. Kh1 {[%emt 00:00:03]
[%clk 00:04:29]} Nc5 {[%emt 00:01:19] [%clk 00:04:17]} 23. Qe2 {[%emt 00:00:32]
[%clk 00:04:07]} Qc6 {[%emt 00:01:26] [%clk 00:03:01]} 24. Rae1 {[%emt 00:00:02]
[%clk 00:04:15]} Nd3 {[%emt 00:01:20] [%clk 00:01:51]} 25. Bc1 {[%emt 00:00:59]
[%clk 00:03:26]} Nxe1 {[%emt 00:00:32] [%clk 00:01:29]} 26. Bxh6 {[%emt
00:00:08] [%clk 00:03:28]} Nxg2 {[%emt 00:00:12] [%clk 00:01:28]} 27. Qxg2
{[%emt 00:00:51] [%clk 00:02:47]} Qxg2+ {[%emt 00:00:32] [%clk 00:01:05]} 28.
Kxg2 {[%emt 00:00:01] [%clk 00:02:55]} gxh6 {[%emt 00:00:01] [%clk 00:01:14]}
29. bxc4 {[%emt 00:00:11] [%clk 00:02:55]} bxc4 {[%emt 00:00:09] [%clk
00:01:15]} 30. fxe6 {[%emt 00:00:02] [%clk 00:03:03]} dxe6 {[%emt 00:00:02]
[%clk 00:01:23]} 31. Rf6 {[%emt 00:00:04] [%clk 00:03:08]} Kd7 {[%emt 00:00:26]
[%clk 00:01:06]} 32. Rf7+ {[%emt 00:00:22] [%clk 00:02:57]} Kc6 {[%emt 00:00:01]
[%clk 00:01:15]} 33. Kf3 {[%emt 00:00:10] [%clk 00:02:57]} Bc5 {[%emt 00:01:04]
[%clk 00:00:21]} 34. Ke4 {[%emt 00:00:08] [%clk 00:02:59]} Rd2 {[%emt 00:00:05]
[%clk 00:00:27]} 35. Ne5+ {[%emt 00:00:08] [%clk 00:03:01]} Kb5 {[%emt 00:00:02]
[%clk 00:00:34]} 36. a4+ {[%emt 00:01:02] [%clk 00:02:10]} Kxa4 {[%emt 00:00:03]
[%clk 00:00:41]} 37. Nxc4 {[%emt 00:00:01] [%clk 00:02:19]} Rh2 {[%emt 00:00:02]
[%clk 00:00:48]} 38. Rf6 {[%emt 00:01:09] [%clk 00:01:20]} Rxh4 {[%emt 00:00:07]
[%clk 00:00:51]} 39. Kd3 {[%emt 00:00:01] [%clk 00:01:29]} Rh3+ {[%emt 00:00:11]
[%clk 00:00:49]} 40. Kd2 {[%emt 00:00:01] [%clk 00:01:38]} Kb5 {[%emt 00:00:16]
[%clk 00:00:42]} 41. Ne5 {[%emt 00:00:13] [%clk 00:01:36]} Be3+ {[%emt 00:00:27]
[%clk 00:00:25]} 42. Kc2 {[%emt 00:00:03] [%clk 00:01:44]} Bg5 {[%emt 00:00:10]
[%clk 00:00:24]} 43. Rxe6 {[%emt 00:00:02] [%clk 00:01:52]} Re3 {[%emt 00:00:07]
[%clk 00:00:26]} 44. c4+ {[%emt 00:00:06] [%clk 00:01:57]} Kc5 {[%emt 00:00:08]
[%clk 00:00:27]} 45. Nd3+ {[%emt 00:01:09] [%clk 00:01:00]} Kxc4 {[%emt
00:00:04] [%clk 00:00:33]} 46. Rc6+ {[%emt 00:00:12] [%clk 00:00:58]} Kb5 {[%emt
00:00:04] [%clk 00:00:38]} 47. Rc8 {[%emt 00:00:08] [%clk 00:01:01]} h4 {[%emt
00:00:04] [%clk 00:00:44]} 48. Rb8+ {[%emt 00:00:02] [%clk 00:01:08]} Kc6 {[%emt
00:00:04] [%clk 00:00:49]} 49. Nb4+ {[%emt 00:00:08] [%clk 00:01:12]} Kd6 {[%emt
00:00:03] [%clk 00:00:55]} 50. Ra8 {[%emt 00:00:09] [%clk 00:01:14]} h3 {[%emt
00:00:27] [%clk 00:00:37]} 51. Rxa7 {[%emt 00:00:01] [%clk 00:01:23]} Re1 {[%emt
00:00:03] [%clk 00:00:44]} 52. Ra6+ {[%emt 00:00:03] [%clk 00:01:31]} Kc7 {[%emt
00:00:09] [%clk 00:00:44]} 53. Nd3 {[%emt 00:00:46] [%clk 00:00:55]} Rf1 {[%emt
00:00:02] [%clk 00:00:52]} 0-1

[Site "Europe Echecs"]

[Event "Championnat d'Europe Rapide"]
[Date "2024.12.07"]
[White "Stojanovski, Dejan"]
[Black "Veljanoski, Andrej"]
[WhiteElo "2407"]
[BlackElo "2304"]
[Round "3.32"]
[Result "1/2-1/2"]
[TimeControl "900+10"]

1. e4 {[%emt 00:00:03] [%clk 00:15:17]} e5 {[%emt 00:00:04] [%clk 00:15:16]} 2.
Nf3 {[%emt 00:00:01] [%clk 00:15:26]} Nc6 {[%emt 00:00:01] [%clk 00:15:25]} 3.
Bb5 {[%emt 00:00:02] [%clk 00:15:34]} a6 {[%emt 00:00:24] [%clk 00:15:12]} 4.
Bxc6 {[%emt 00:00:04] [%clk 00:15:41]} dxc6 {[%emt 00:00:02] [%clk 00:15:19]} 5.
Nc3 {[%clk 00:15:50]} f6 {[%emt 00:00:12] [%clk 00:15:17]} 6. d4 {[%emt
00:00:01] [%clk 00:15:58]} exd4 {[%emt 00:00:06] [%clk 00:15:22]} 7. Nxd4 {[%emt
00:00:01] [%clk 00:16:06]} c5 {[%emt 00:00:38] [%clk 00:14:55]} 8. Nde2 {[%clk
00:16:15]} Qxd1+ {[%emt 00:00:10] [%clk 00:14:54]} 9. Nxd1 {[%emt 00:00:01]
[%clk 00:16:23]} Bd7 {[%emt 00:00:14] [%clk 00:14:51]} 10. Bf4 {[%emt 00:00:04]
[%clk 00:16:29]} O-O-O {[%emt 00:00:03] [%clk 00:14:58]} 11. Ne3 {[%clk
00:16:38]} Bc6 {[%emt 00:00:51] [%clk 00:14:18]} 12. f3 {[%emt 00:00:45] [%clk
00:16:03]} h5 {[%emt 00:00:15] [%clk 00:14:13]} 13. h4 {[%emt 00:00:04] [%clk
00:16:09]} Nh6 {[%emt 00:00:02] [%clk 00:14:21]} 14. Kf2 {[%emt 00:00:16] [%clk
00:16:02]} Nf7 {[%emt 00:00:09] [%clk 00:14:23]} 15. Rad1 {[%emt 00:00:04] [%clk
00:16:08]} g6 {[%emt 00:04:16] [%clk 00:10:17]} 16. Rxd8+ {[%emt 00:00:21] [%clk
00:15:58]} Nxd8 {[%emt 00:00:01] [%clk 00:10:26]} 17. Rd1 {[%emt 00:00:29] [%clk
00:15:39]} Ne6 {[%emt 00:00:09] [%clk 00:10:27]} 18. Nd5 {[%emt 00:03:13] [%clk
00:12:36]} Bxd5 {[%emt 00:00:21] [%clk 00:10:17]} 19. Rxd5 {[%emt 00:00:01]
[%clk 00:12:45]} c4 {[%emt 00:00:28] [%clk 00:09:59]} 20. Be3 {[%emt 00:00:09]
[%clk 00:12:46]} Be7 {[%emt 00:00:29] [%clk 00:09:41]} 21. Rd1 {[%emt 00:00:13]
[%clk 00:12:43]} b5 {[%emt 00:00:57] [%clk 00:08:53]} 22. Nf4 {[%emt 00:00:26]
[%clk 00:12:27]} Nxf4 {[%emt 00:00:15] [%clk 00:08:48]} 23. Bxf4 {[%emt
00:00:01] [%clk 00:12:36]} Rd8 {[%emt 00:00:17] [%clk 00:08:41]} 24. Rxd8+
{[%emt 00:01:36] [%clk 00:11:10]} Kxd8 {[%emt 00:00:02] [%clk 00:08:49]} 25. g4
{[%emt 00:03:11] [%clk 00:08:08]} Kd7 {[%emt 00:00:56] [%clk 00:08:03]} 1/2-1/2

[Site "Europe Echecs"]